fUSD/lending_fUSD_20260522
["ID","MTS","AMOUNT","RATE_DAILY","PERIOD"]
[422808779,1779435977000,231.12,9.509e-05,2]
[422808798,1779436167000,-154.00976363,0.00010127,2]
[422808809,1779436231000,-150.0,0.00010403,2]
[422808824,1779436231000,-300.0,0.00012081,2]
[422808825,1779436231000,-1200.0,0.00012081,2]
[422808818,1779436231000,-231.12,0.00011672,2]
[422808820,1779436231000,-231.12,0.00011981,2]
[422808819,1779436231000,-430.31,0.0001183,2]
[422808823,1779436231000,-300.0,0.00012081,2]
[422808817,1779436231000,-153.72,0.00011591,2]
[422808822,1779436231000,-300.0,0.00012081,2]
[422808806,1779436231000,-77.11023637,0.00010127,2]
[422808821,1779436231000,-293.29603643,0.00011995,2]
[422808815,1779436231000,-250.0,0.0001114,2]
[422808816,1779436231000,-231.12,0.00011363,2]
[422808813,1779436231000,-231.12,0.00010745,2]
[422808814,1779436231000,-231.12,0.00011054,2]
[422808808,1779436231000,-150.0,0.00010301,2]
[422808826,1779436231000,-300.0,0.00012081,2]
[422808811,1779436231000,-173.62,0.0001044,2]
[422808812,1779436231000,-208.0,0.00010505,2]
[422808810,1779436231000,-231.12,0.00010436,2]
[422808807,1779436231000,-250.0,0.00010214,2]
[422808827,1779436231000,-150.0,0.00012082,2]
[422808838,1779436231000,-499.99,0.00012087,2]
[422808828,1779436231000,-150.0,0.00012082,2]
[422808850,1779436231000,-2489.9558,0.00012793,2]
[422808845,1779436231000,-150.0,0.00012658,2]
[422808848,1779436231000,-463.72628528,0.00012783,2]
[422808847,1779436231000,-4951.30386038,0.00012749,2]
[422808844,1779436231000,-500.0,0.0001263,2]
[422808846,1779436231000,-8040.09100849,0.00012749,2]
[422808842,1779436231000,-150.0,0.00012274,2]
[422808841,1779436231000,-259.73,0.00012177,2]
[422808829,1779436231000,-150.0,0.00012082,2]
[422808849,1779436231000,-4171.6214,0.00012793,2]
[422808839,1779436231000,-2437.89,0.00012087,2]
[422808837,1779436231000,-5600.98,0.00012087,2]
[422808833,1779436231000,-150.0,0.00012082,2]
[422808832,1779436231000,-150.0,0.00012082,2]
[422808831,1779436231000,-150.0,0.00012082,2]
[422808836,1779436231000,-1735.25,0.00012087,2]
[422808834,1779436231000,-14178.0,0.00012087,2]
[422808830,1779436231000,-150.0,0.00012082,2]
[422808835,1779436231000,-999.99,0.00012087,2]
[422808840,1779436231000,-150.99,0.00012087,2]
[422808843,1779436231000,-150.0,0.00012466,2]
[422808853,1779436232000,-785.0,0.00012793,2]
[422808851,1779436232000,-55620.31992136,0.00012793,2]
[422808852,1779436232000,-673.50309465,0.00012793,2]
[422808856,1779436232000,-1166.83551856,0.00012793,2]
[422808854,1779436232000,-852.7566013,0.00012793,2]
[422808855,1779436232000,-1337.70986208,0.00012793,2]
[422808862,1779436233000,-215.27762834,0.00010594,2]
[422808878,1779436234000,-500.0,0.00012792,2]
[422808874,1779436234000,-500.0,0.00012792,2]
[422808873,1779436234000,-500.0,0.00012792,2]
[422808875,1779436234000,-500.0,0.00012792,2]
[422808876,1779436234000,-500.0,0.00012792,2]
[422808871,1779436234000,-345.41853551,0.00012792,2]
[422808870,1779436234000,-500.0,0.00012792,2]
[422808877,1779436234000,-500.0,0.00012792,2]
[422808866,1779436234000,-236.53986519,0.00012792,2]
[422808868,1779436234000,-500.0,0.00012792,2]
[422808867,1779436234000,-572.89626029,0.00012792,2]
[422808865,1779436234000,-246.40187989,0.00012792,2]
[422808864,1779436234000,-553.81235847,0.00012792,2]
[422808872,1779436234000,-275.43699095,0.00012792,2]
[422808879,1779436234000,-500.0,0.00012792,2]
[422808869,1779436234000,-500.0,0.00012792,2]
[422808886,1779436234000,-500.0,0.00012792,2]
[422808882,1779436234000,-500.0,0.00012792,2]
[422808895,1779436234000,-648.76047939,0.00012793,2]
[422808894,1779436234000,-500.0,0.00012792,2]
[422808893,1779436234000,-481.20033232,0.00012793,2]
[422808892,1779436234000,-500.0,0.00012793,2]
[422808890,1779436234000,-4608.65899614,0.00012793,2]
[422808889,1779436234000,-500.0,0.00012792,2]
[422808891,1779436234000,-1249.39039257,0.00012793,2]
[422808887,1779436234000,-4444.21648136,0.00012793,2]
[422808885,1779436234000,-500.0,0.00012792,2]
[422808884,1779436234000,-500.0,0.00012792,2]
[422808883,1779436234000,-500.0,0.00012792,2]
[422808880,1779436234000,-500.0,0.00012792,2]
[422808881,1779436234000,-500.0,0.00012792,2]
[422808888,1779436234000,-500.0,0.00012792,2]
[422808901,1779436237000,-500.0,0.00012792,2]
[422808899,1779436237000,-500.0,0.00012792,2]
[422808898,1779436237000,-464.51484239,0.00012792,2]
[422808900,1779436237000,-500.0,0.00012792,2]
[422808897,1779436237000,-500.0,0.00012792,2]
[422808904,1779436237000,-500.0,0.00012792,2]
[422808896,1779436237000,-500.0,0.00012792,2]
[422808905,1779436237000,-500.0,0.00012792,2]
[422808903,1779436237000,-500.0,0.00012792,2]
[422808907,1779436237000,-500.0,0.00012792,2]
[422808902,1779436237000,-500.0,0.00012792,2]
[422808908,1779436237000,-500.0,0.00012792,2]
[422808906,1779436237000,-500.0,0.00012792,2]
[422808916,1779436237000,-5043.8976806,0.00012793,2]
[422808913,1779436237000,-500.0,0.00012792,2]
[422808909,1779436237000,-500.0,0.00012792,2]
[422808917,1779436237000,-284.68695577,0.00012793,2]
[422808914,1779436237000,-500.0,0.00012792,2]
[422808915,1779436237000,-39717.52561628,0.00012793,2]
[422808910,1779436237000,-500.0,0.00012792,2]
[422808911,1779436237000,-500.0,0.00012792,2]
[422808912,1779436237000,-500.0,0.00012792,2]
[422808924,1779436238000,-598.26313241,0.00012793,2]
[422808922,1779436238000,-2000.03787519,0.00012793,2]
[422808921,1779436238000,-579.78867862,0.00012793,2]
[422808938,1779436240000,-9999.99,0.00012893,2]
[422808941,1779436240000,-9999.99,0.00012893,2]
[422808942,1779436240000,-24999.99,0.00012893,2]
[422808943,1779436240000,-1588.85,0.00012893,2]
[422808948,1779436240000,-8040.0910084,0.00013227,2]
[422808952,1779436240000,-186.95973462,0.00013253,2]
[422808950,1779436240000,-5000.0,0.00013232,2]
[422808945,1779436240000,-150.0,0.00013041,2]
[422808946,1779436240000,-4951.30386037,0.00013056,2]
[422808937,1779436240000,-16424.84,0.00012893,2]
[422808949,1779436240000,-2500.0,0.00013231,2]
[422808947,1779436240000,-7546.06249224,0.00013209,2]
[422808939,1779436240000,-299.99,0.00012893,2]
[422808931,1779436240000,-9999.99,0.00012893,2]
[422808934,1779436240000,-204.2,0.00012893,2]
[422808935,1779436240000,-204.2,0.00012893,2]
[422808936,1779436240000,-9999.99,0.00012893,2]
[422808932,1779436240000,-705.63,0.00012893,2]
[422808940,1779436240000,-4999.99,0.00012893,2]
[422808930,1779436240000,-8894.8,0.00012893,2]
[422808928,1779436240000,-150.0,0.00012849,2]
[422808927,1779436240000,-1171448.37797328,0.00012793,2]
[422808929,1779436240000,-150.0,0.0001289,2]
[422808926,1779436240000,-512.5297164,0.00012793,2]
[422808925,1779436240000,-4762.60339172,0.00012793,2]
[422808951,1779436240000,-150.0,0.00013233,2]
[422808933,1779436240000,-204.2,0.00012893,2]
[422808953,1779436240000,-170.0,0.00013255,2]
[422808944,1779436240000,-8040.0910084,0.00012988,2]
[422808954,1779436240000,-170.0,0.00013255,2]
[422808982,1779436240000,-248.58448134,0.00013431,2]
[422808979,1779436240000,-222.79548017,0.00013425,2]
[422808983,1779436240000,-1050706.63889093,0.00013432,2]
[422808980,1779436240000,-150.0,0.00013425,2]
[422808978,1779436240000,-150.0,0.00013425,2]
[422808977,1779436240000,-1588.0,0.000134,2]
[422808975,1779436240000,-500.0,0.00013397,2]
[422808971,1779436240000,-300.0,0.00013331,2]
[422808973,1779436240000,-4951.30386037,0.00013364,2]
[422808974,1779436240000,-7546.06249222,0.00013391,2]
[422808972,1779436240000,-10000.0,0.00013332,2]
[422808970,1779436240000,-1227.99243558,0.00013331,3]
[422808969,1779436240000,-1227.99243558,0.00013331,3]
[422808976,1779436240000,-340.0,0.00013397,2]
[422808967,1779436240000,-151.0,0.00013329,2]
[422808968,1779436240000,-620.85690103,0.00013331,2]
[422808956,1779436240000,-170.0,0.00013255,2]
[422808957,1779436240000,-170.0,0.00013255,2]
[422808961,1779436240000,-300.0,0.00013261,2]
[422808964,1779436240000,-7546.06249222,0.000133,2]
[422808963,1779436240000,-1431.0,0.00013289,2]
[422808959,1779436240000,-204.4,0.00013256,2]
[422808955,1779436240000,-170.0,0.00013255,2]
[422808958,1779436240000,-170.1,0.00013255,2]
[422808962,1779436240000,-257.03488946,0.00013271,2]
[422808981,1779436240000,-151.0,0.00013429,2]
[422808960,1779436240000,-371.0,0.00013261,2]
[422808965,1779436240000,-430.31,0.00013309,2]
[422808966,1779436240000,-163.390817,0.00013329,2]
[422809014,1779436242000,-20004.71386043,0.00013432,2]
[422809013,1779436242000,-1266.83771991,0.00013432,2]
[422809015,1779436243000,-556.3861,0.00013432,2]
[422809016,1779436243000,-3280.0092848,0.00013432,2]
[422809019,1779436244000,177.8,0.00028,120]
[422809021,1779436245000,-3936.0667,0.00013432,2]
[422809023,1779436246000,-1643.01793077,0.00013432,2]
[422809022,1779436246000,-355.29067474,0.00013432,2]
[422809034,1779436554000,152.0,9.994e-05,7]
[422809040,1779436658000,-599.60298507,0.00012537,2]
[422809053,1779436740000,2238.36,0.00028082,120]
[422809054,1779436760000,1119.18,0.00028082,120]
[422809055,1779436786000,1110.0,0.00028082,120]
[422809056,1779436839000,224.7,6.148e-05,2]
[422809059,1779437006000,-150.0,0.00012114,2]
[422809061,1779437179000,156.0,8.1e-05,2]
[422809066,1779437305000,173.51,0.00028,120]
[422809067,1779437317000,174.0,0.00028,120]
[422809068,1779437339000,-150.0,0.0001149,2]
[422809069,1779437340000,1000.0,0.00028081,120]
[422809073,1779437431000,-150.0,0.0001149,2]
[422809076,1779437431000,-150.0,0.0001181,2]
[422809075,1779437431000,-150.0,0.0001149,2]
[422809077,1779437431000,-200.0,0.0001181,2]
[422809078,1779437431000,-200.0,0.0001182,2]
[422809079,1779437431000,-194.25,0.00012114,2]
[422809074,1779437431000,-150.0,0.0001149,2]
[422809080,1779437431000,-150.0,0.00012129,2]
[422809082,1779437431000,-166.67,0.00012417,2]
[422809083,1779437431000,-1404.958,0.00012439,2]
[422809084,1779437431000,-300.0,0.00012447,2]
[422809086,1779437431000,-1200.0,0.00012447,2]
[422809085,1779437431000,-300.0,0.00012447,2]
[422809081,1779437431000,-200.0,0.00012164,2]
[422809087,1779437431000,-150.0,0.00012448,2]
[422809111,1779437432000,-151.0,0.0001269,2]
[422809109,1779437432000,-309.15085685,0.00012683,2]
[422809113,1779437432000,-208.08233963,0.0001269,2]
[422809115,1779437432000,-151.0,0.0001269,2]
[422809132,1779437432000,-571.28756959,0.00012692,2]
[422809119,1779437432000,-163.390817,0.0001269,2]
[422809134,1779437432000,-571.28756959,0.00012692,2]
[422809133,1779437432000,-571.28756959,0.00012692,2]
[422809121,1779437432000,-150.0,0.00012691,2]
[422809117,1779437432000,-151.0,0.0001269,2]
[422809101,1779437432000,-186.95973462,0.00012593,2]
[422809089,1779437432000,-9999.99,0.00012448,2]
[422809103,1779437432000,-7546.06249224,0.00012593,2]
[422809107,1779437432000,-4379.12263741,0.00012593,2]
[422809097,1779437432000,-5000.0,0.00012593,2]
[422809096,1779437432000,-24999.99,0.00012448,2]
[422809095,1779437432000,-173.16453282,0.00012448,2]
[422809094,1779437432000,-784.32880541,0.00012448,2]
[422809090,1779437432000,-1588.85,0.00012448,2]
[422809093,1779437432000,-2354.278804,0.00012448,2]
[422809091,1779437432000,-5583.02785777,0.00012448,2]
[422809088,1779437432000,-9999.99,0.00012448,2]
[422809105,1779437432000,-8031.1845025,0.00012593,2]
[422809123,1779437432000,-172.48131592,0.00012692,2]
[422809099,1779437432000,-2500.0,0.00012593,2]
[422809128,1779437432000,-500.0,0.00012692,2]
[422809155,1779437432000,-571.28756959,0.00012692,2]
[422809150,1779437432000,-571.28756959,0.00012692,2]
[422809152,1779437432000,-571.28756959,0.00012692,2]
[422809154,1779437432000,-571.28756959,0.00012692,2]
[422809156,1779437432000,-550.3142703,0.00012692,2]
[422809151,1779437432000,-571.28756959,0.00012692,2]
[422809153,1779437432000,-571.28756959,0.00012692,2]
[422809149,1779437432000,-571.28756959,0.00012692,2]
[422809146,1779437432000,-571.28756959,0.00012692,2]
[422809148,1779437432000,-571.28756959,0.00012692,2]
[422809147,1779437432000,-571.28756959,0.00012692,2]
[422809126,1779437432000,-401.02738221,0.00012692,2]
[422809144,1779437432000,-571.28756959,0.00012692,2]
[422809139,1779437432000,-571.28756959,0.00012692,2]
[422809130,1779437432000,-237.66865093,0.00012692,2]
[422809135,1779437432000,-571.28756959,0.00012692,2]
[422809136,1779437432000,-571.28756959,0.00012692,2]
[422809138,1779437432000,-571.28756959,0.00012692,2]
[422809137,1779437432000,-571.28756959,0.00012692,2]
[422809142,1779437432000,-571.28756959,0.00012692,2]
[422809145,1779437432000,-571.28756959,0.00012692,2]
[422809143,1779437432000,-571.28756959,0.00012692,2]
[422809141,1779437432000,-571.28756959,0.00012692,2]
[422809140,1779437432000,-571.28756959,0.00012692,2]
[422809215,1779437440000,-563.12631859,0.00012692,2]
[422809208,1779437440000,-571.28756959,0.00012692,2]
[422809211,1779437440000,-571.28756959,0.00012692,2]
[422809210,1779437440000,-571.28756959,0.00012692,2]
[422809214,1779437440000,-563.12631859,0.00012692,2]
[422809216,1779437440000,-563.12631859,0.00012692,2]
[422809222,1779437440000,-563.12631859,0.00012692,2]
[422809217,1779437440000,-563.12631859,0.00012692,2]
[422809219,1779437440000,-563.12631859,0.00012692,2]
[422809218,1779437440000,-563.12631859,0.00012692,2]
[422809221,1779437440000,-563.12631859,0.00012692,2]
[422809209,1779437440000,-571.28756959,0.00012692,2]
[422809224,1779437440000,-563.12631859,0.00012692,2]
[422809223,1779437440000,-563.12631859,0.00012692,2]
[422809213,1779437440000,-563.12631859,0.00012692,2]
[422809207,1779437440000,-571.28756959,0.00012692,2]
[422809200,1779437440000,-571.28756959,0.00012692,2]
[422809206,1779437440000,-571.28756959,0.00012692,2]
[422809191,1779437440000,-419.39299115,0.00012692,2]
[422809190,1779437440000,-20.97329929,0.00012692,2]
[422809192,1779437440000,-151.89457844,0.00012692,2]
[422809195,1779437440000,-571.28756959,0.00012692,2]
[422809198,1779437440000,-571.28756959,0.00012692,2]
[422809225,1779437440000,-563.12631859,0.00012692,2]
[422809197,1779437440000,-571.28756959,0.00012692,2]
[422809196,1779437440000,-571.28756959,0.00012692,2]
[422809194,1779437440000,-571.28756959,0.00012692,2]
[422809193,1779437440000,-571.28756959,0.00012692,2]
[422809203,1779437440000,-571.28756959,0.00012692,2]
[422809202,1779437440000,-571.28756959,0.00012692,2]
[422809201,1779437440000,-571.28756959,0.00012692,2]
[422809204,1779437440000,-571.28756959,0.00012692,2]
[422809205,1779437440000,-571.28756959,0.00012692,2]
[422809212,1779437440000,-165.57790564,0.00012692,2]
[422809220,1779437440000,-563.12631859,0.00012692,2]
[422809199,1779437440000,-571.28756959,0.00012692,2]
[422809228,1779437440000,-563.12631859,0.00012692,2]
[422809247,1779437440000,-557.4950554,0.00012692,2]
[422809245,1779437440000,-563.12631859,0.00012692,2]
[422809249,1779437440000,-557.4950554,0.00012692,2]
[422809252,1779437440000,-557.4950554,0.00012692,2]
[422809254,1779437440000,-557.4950554,0.00012692,2]
[422809251,1779437440000,-557.4950554,0.00012692,2]
[422809250,1779437440000,-557.4950554,0.00012692,2]
[422809256,1779437440000,-872.0,0.00012693,5]
[422809253,1779437440000,-557.4950554,0.00012692,2]
[422809257,1779437440000,-406.4562,0.00012693,2]
[422809260,1779437440000,-2000.0,0.00012693,2]
[422809259,1779437440000,-500.0,0.00012693,2]
[422809258,1779437440000,-1189740.012,0.00012693,2]
[422809261,1779437440000,-5797.44867375,0.00012693,2]
[422809226,1779437440000,-563.12631859,0.00012692,2]
[422809248,1779437440000,-557.4950554,0.00012692,2]
[422809246,1779437440000,-557.4950554,0.00012692,2]
[422809255,1779437440000,-557.49505538,0.00012692,2]
[422809242,1779437440000,-563.12631859,0.00012692,2]
[422809227,1779437440000,-563.12631859,0.00012692,2]
[422809244,1779437440000,-563.12631859,0.00012692,2]
[422809230,1779437440000,-563.12631859,0.00012692,2]
[422809231,1779437440000,-500.0,0.00012692,2]
[422809232,1779437440000,-563.12631859,0.00012692,2]
[422809234,1779437440000,-563.12631859,0.00012692,2]
[422809233,1779437440000,-441.79297486,0.00012692,2]
[422809235,1779437440000,-563.12631859,0.00012692,2]
[422809229,1779437440000,-563.12631859,0.00012692,2]
[422809238,1779437440000,-563.12631859,0.00012692,2]
[422809236,1779437440000,-563.12631859,0.00012692,2]
[422809239,1779437440000,-563.12631859,0.00012692,2]
[422809241,1779437440000,-563.12631859,0.00012692,2]
[422809240,1779437440000,-563.12631859,0.00012692,2]
[422809237,1779437440000,-563.12631859,0.00012692,2]
[422809243,1779437440000,-563.12631859,0.00012692,2]
[422809279,1779437443000,-421.60199284,0.00012766,2]
[422809276,1779437443000,-705.63,0.00012766,2]
[422809274,1779437443000,-7546.06249222,0.00012752,2]
[422809277,1779437443000,-9999.99,0.00012766,2]
[422809275,1779437443000,-8031.18450246,0.00012752,2]
[422809273,1779437443000,-4999.99,0.00012752,2]
[422809271,1779437443000,-150.99,0.00012752,2]
[422809269,1779437443000,-661.05631306,0.00012728,2]
[422809268,1779437443000,-3070.65537696,0.00012728,2]
[422809266,1779437443000,-4202.55132625,0.00012693,2]
[422809267,1779437443000,-257.03488946,0.00012728,2]
[422809278,1779437443000,-595.98611851,0.00012766,2]
[422809272,1779437443000,-299.99,0.00012752,2]
[422809280,1779437443000,-533.0,0.00012766,2]
[422809270,1779437443000,-405.73594914,0.00012728,2]
[422809281,1779437443000,-14874.25188865,0.00012766,2]
[422809294,1779437443000,-51769.70168252,0.00012829,2]
[422809295,1779437443000,-3088.54417283,0.00012829,2]
[422809293,1779437443000,-300.0,0.00012828,2]
[422809292,1779437443000,-1227.99243558,0.00012792,3]
[422809289,1779437443000,-666.0,0.00012792,2]
[422809288,1779437443000,-300.0,0.00012792,2]
[422809282,1779437443000,-340.0,0.00012767,2]
[422809291,1779437443000,-248.58448134,0.00012792,2]
[422809285,1779437443000,-309.15085685,0.00012783,2]
[422809290,1779437443000,-300.0,0.00012792,2]
[422809286,1779437443000,-620.85690103,0.00012792,2]
[422809283,1779437443000,-150.0,0.00012767,2]
[422809284,1779437443000,-238.70944305,0.00012767,2]
[422809287,1779437443000,-2192.74497269,0.00012792,2]
[422809298,1779437445000,-703.90709342,0.00012593,2]
[422809299,1779437445000,-313.21642921,0.00012829,2]
[422809297,1779437445000,-1296.09290658,0.00012593,2]
[422809300,1779437446000,-609.76852916,0.00012829,2]
[422809302,1779437446000,-374.33575661,0.00012829,2]
[422809301,1779437446000,-9488.43538743,0.00012829,2]
[422809304,1779437446000,-951.46598943,0.00012829,2]
[422809303,1779437446000,-283.82629871,0.00012829,2]
[422809306,1779437446000,-5273.27600002,0.00012829,2]
[422809310,1779437446000,-1308.3810213,0.00012829,2]
[422809307,1779437446000,-1229.407356,0.00012829,2]
[422809309,1779437446000,-2106.46365388,0.00012829,2]
[422809308,1779437446000,-786.8175,0.00012829,2]
[422809312,1779437446000,-375.09007224,0.00012829,2]
[422809313,1779437446000,-3809.86517128,0.00012829,2]
[422809305,1779437446000,-655.2041005,0.00012829,2]
[422809311,1779437446000,-1525.4523995,0.00012829,2]
[422809319,1779437587000,161.38,7.01e-05,2]
[422809318,1779437587000,161.38,6.258e-05,2]
[422809320,1779437588000,161.38,7.761e-05,2]
[422809321,1779437588000,161.38,8.513e-05,2]
[422809322,1779437588000,161.38,9.264e-05,2]
[422809323,1779437606000,152.0,0.00011292,7]
[422809325,1779437906000,152.0,0.00011295,7]
[422809328,1779438033000,150.0,9.715e-05,2]
[422809330,1779438076000,-10.38,0.00010016,2]
[422809329,1779438076000,-151.0,0.00010016,2]
[422809331,1779438094000,150.0,9.715e-05,2]
[422809333,1779438128000,522.8563,7.945e-05,2]
[422809334,1779438128000,631.37079982,7.945e-05,2]
[422809335,1779438128000,704.75052518,7.945e-05,2]
[422809336,1779438171000,-3664.315496,0.00010646,2]
[422809337,1779438172000,-11335.684504,0.000107,2]
[422809338,1779438197000,152.0,0.00011223,3]
[422809339,1779438226000,-150.0,0.000107,2]
[422809341,1779438350000,175.58,6.272e-05,2]
[422809340,1779438350000,175.58,5.97e-05,2]
[422809342,1779438351000,175.58,6.574e-05,2]
[422809343,1779438351000,175.58,6.876e-05,2]
[422809346,1779438351000,175.58,7.781e-05,2]
[422809345,1779438351000,175.58,7.479e-05,2]
[422809347,1779438351000,175.58,8.083e-05,2]
[422809344,1779438351000,175.58,7.178e-05,2]
[422809352,1779438352000,175.58,9.593e-05,2]
[422809351,1779438352000,175.58,9.291e-05,2]
[422809350,1779438352000,175.58,8.989e-05,2]
[422809349,1779438352000,175.58,8.687e-05,2]
[422809348,1779438352000,175.58,8.385e-05,2]
[422809353,1779438353000,175.58,9.895e-05,2]
[422809354,1779438540000,1000.0,0.0002808,120]
[422809359,1779438631000,-175.58,0.00010498,2]
[422809362,1779438631000,-175.58,0.000108,2]
[422809360,1779438631000,-147.00316113,0.000107,2]
[422809361,1779438631000,-598.93672025,0.000107,2]
[422809358,1779438631000,-175.58,0.00010196,2]
[422809363,1779438631000,-175.58,0.00011102,2]
[422809365,1779438631000,-150.0,0.00011515,2]
[422809366,1779438631000,-215.27762834,0.00011593,2]
[422809367,1779438631000,-175.58,0.00011706,2]
[422809364,1779438631000,-175.58,0.00011404,2]
[422809396,1779438632000,-500.0,0.00012483,2]
[422809398,1779438632000,-500.0,0.00012483,2]
[422809395,1779438632000,-500.0,0.00012483,2]
[422809397,1779438632000,-500.0,0.00012483,2]
[422809400,1779438632000,-500.0,0.00012483,2]
[422809401,1779438632000,-500.0,0.00012483,2]
[422809399,1779438632000,-500.0,0.00012483,2]
[422809403,1779438632000,-500.0,0.00012483,2]
[422809402,1779438632000,-500.0,0.00012483,2]
[422809405,1779438632000,-500.0,0.00012483,2]
[422809404,1779438632000,-500.0,0.00012483,2]
[422809409,1779438632000,-500.0,0.00012483,2]
[422809408,1779438632000,-500.0,0.00012483,2]
[422809406,1779438632000,-500.0,0.00012483,2]
[422809410,1779438632000,-500.0,0.00012483,2]
[422809411,1779438632000,-500.0,0.00012483,2]
[422809412,1779438632000,-500.0,0.00012483,2]
[422809414,1779438632000,-500.0,0.00012483,2]
[422809413,1779438632000,-500.0,0.00012483,2]
[422809415,1779438632000,-500.0,0.00012483,2]
[422809416,1779438632000,-500.0,0.00012483,2]
[422809417,1779438632000,-500.0,0.00012483,2]
[422809419,1779438632000,-500.0,0.00012483,2]
[422809407,1779438632000,-500.0,0.00012483,2]
[422809393,1779438632000,-500.0,0.00012483,2]
[422809392,1779438632000,-500.0,0.00012483,2]
[422809391,1779438632000,-500.0,0.00012483,2]
[422809418,1779438632000,-500.0,0.00012483,2]
[422809368,1779438632000,-1200.0,0.00011797,2]
[422809370,1779438632000,-150.99,0.00011798,2]
[422809369,1779438632000,-275.4,0.00011798,2]
[422809373,1779438632000,-1417.32,0.00011877,2]
[422809371,1779438632000,-9999.99,0.00011798,2]
[422809374,1779438632000,-153.72,0.00011895,2]
[422809372,1779438632000,-152.0,0.00011802,4]
[422809375,1779438632000,-152.0,0.00012382,5]
[422809376,1779438632000,-150.0,0.0001245,2]
[422809377,1779438632000,-3082.5220888,0.00012451,2]
[422809394,1779438632000,-500.0,0.00012483,2]
[422809379,1779438632000,-3064.71730295,0.00012451,2]
[422809382,1779438632000,-500.0,0.00012483,2]
[422809381,1779438632000,-500.0,0.00012483,2]
[422809383,1779438632000,-500.0,0.00012483,2]
[422809380,1779438632000,-3831.73230776,0.00012451,2]
[422809386,1779438632000,-500.0,0.00012483,2]
[422809384,1779438632000,-500.0,0.00012483,2]
[422809385,1779438632000,-500.0,0.00012483,2]
[422809387,1779438632000,-500.0,0.00012483,2]
[422809389,1779438632000,-500.0,0.00012483,2]
[422809390,1779438632000,-500.0,0.00012483,2]
[422809388,1779438632000,-500.0,0.00012483,2]
[422809378,1779438632000,-277.70821029,0.00012451,2]
[422809420,1779438632000,-500.0,0.00012483,2]
[422809462,1779438632000,-694.09346245,0.00012483,2]
[422809421,1779438632000,-607.23768782,0.00012483,2]
[422809450,1779438632000,-720.01396519,0.00012483,2]
[422809452,1779438632000,-720.01396519,0.00012483,2]
[422809454,1779438632000,-720.01396519,0.00012483,2]
[422809455,1779438632000,-694.09346245,0.00012483,2]
[422809458,1779438632000,-694.09346245,0.00012483,2]
[422809457,1779438632000,-694.09346245,0.00012483,2]
[422809456,1779438632000,-694.09346245,0.00012483,2]
[422809453,1779438632000,-720.01396519,0.00012483,2]
[422809460,1779438632000,-694.09346245,0.00012483,2]
[422809459,1779438632000,-694.09346245,0.00012483,2]
[422809461,1779438632000,-694.09346245,0.00012483,2]
[422809451,1779438632000,-720.01396519,0.00012483,2]
[422809474,1779438632000,-3184.83094082,0.00012484,2]
[422809464,1779438632000,-694.09346245,0.00012483,2]
[422809466,1779438632000,-694.09346245,0.00012483,2]
[422809465,1779438632000,-694.09346245,0.00012483,2]
[422809467,1779438632000,-694.09346245,0.00012483,2]
[422809468,1779438632000,-694.09346245,0.00012483,2]
[422809469,1779438632000,-694.09346245,0.00012483,2]
[422809471,1779438632000,-71094.56787827,0.00012484,2]
[422809470,1779438632000,-109027.30026508,0.00012484,2]
[422809473,1779438632000,-777.76372503,0.00012484,2]
[422809472,1779438632000,-159482.51823889,0.00012484,2]
[422809475,1779438632000,-471.56066449,0.00012484,2]
[422809463,1779438632000,-694.09346245,0.00012483,2]
[422809449,1779438632000,-720.01396519,0.00012483,2]
[422809423,1779438632000,-720.01396519,0.00012483,2]
[422809447,1779438632000,-720.01396519,0.00012483,2]